[Event "Slovakia Open 2022"]
[Site "Bratislava"]
[Date "2022.10.02"]
[Round "9.18"]
[White "Vadila, Ondrej"]
[Black "Babula, Matej"]
[Result "1/2-1/2"]
[ECO "D02"]
[WhiteElo "2178"]
[BlackElo "1864"]
[Annotator "TA"]
[PlyCount "161"]
[EventDate "2022.09.30"]
[EventCountry "SVK"]
[SourceTitle "playchess.com"]
[Source "ChessBase"]
[SourceQuality "1"]
[TimeControl "2700+10"]

{[%evp 10,161,8,3,8,0,28,21,26,-6,51,36,79,81,140,141,152,143,162,163,246,114,121,111,108,57,139,112,110,119,277,278,274,276,291,277,297,258,262,239,347,236,227,196,195,175,222,217,282,232,284,261,284,309,331,302,491,490,510,482,603,594,587,581,1035,520,496,519,520,493,485,477,467,458,476,399,536,543,527,467,589,572,576,507,585,568,543,543,511,508,456,102,102,102,102,102,102,102,102,30,102,102,102,102,102,102,102,102,102,102,134,8,102,8,102,102,102,8,34,88,4,102,102,102,102,102,102,8,8,8,8,8,8,4,4,0,8,8,8,4,4,4,5,5,5,0,47,0,0,0,0,0,0,0]} 1. d4 {[%emt 0:00:04]} Nf6 {[%emt 0:00:02]} 2. Bf4 {[%emt 0:00:03]} e6 {[%emt 0:00:26]} 3. e3 {[%emt 0:00:07]} b6 {[%emt 0:00:06]} 4. Nd2 {[%emt 0:00:03]} Bb7 {[%emt 0:00:11]} 5. Ngf3 {[%emt 0:00:04]} d5 {[%emt 0:00:38]} 6. Bd3 {[%emt 0:00:19]} Bd6 $1 {[%emt 0:00:27] 6...Bd6 is better than 6...Nbd7. D02: 1 d4 d5 2 Nf3 sidelines, including 2...Nf6 3 g3 and 2...Nf6 3 Bf4.} 7. Ne5 {[%emt 0:00:15]} Nbd7 {[%emt 0:00:22]} 8. Qf3 {[%emt 0:00:18]} Qe7 {[%emt 0:02:13] [#]} 9. h4 $146 {[%emt 0:00:18]} ({Predecessor:} 9. O-O h6 10. Ndc4 Ne4 11. Nxd6+ cxd6 12. Nxd7 Qxd7 13. Qe2 Qe7 14. Bb5+ Kf8 15. f3 {1-0 (35) Mamedov,R (2678)-Akobian,V (2625) Atlantic City 2016}) 9... c5 {[%emt 0:02:55]} (9... Bxe5 $11 10. dxe5 Ne4) 10. c3 {[%emt 0:00:19]} h5 {[%emt 0:03:20]} 11. Qg3 {[%emt 0:00:11] White is much more active. The black rooks are badly placed.} Bxe5 {[%emt 0:05:38]} (11... Ng4 $142) 12. dxe5 $16 {[%emt 0:00:17]} Ne4 {[%emt 0:00:44]} 13. Bxe4 {[%emt 0:00:26]} (13. Qxg7 $6 O-O-O 14. Nxe4 dxe4 $14) 13... dxe4 {[%emt 0:00:05]} 14. Qxg7 {[%emt 0:01:00]} O-O-O {[%emt 0:00:43]} (14... Qf8 {was necessary.} 15. Qxf8+ Rxf8) 15. Bg5 {[%emt 0:00:08]} (15. Nc4 $1 $18) 15... Qf8 {[%emt 0:01:28]} 16. Qxf8 {[%emt 0:00:29]} Rdxf8 {[%emt 0:00:02]} 17. Nc4 {[%emt 0:00:10]} (17. O-O $16) 17... Ba6 {[%emt 0:05:14]} (17... Kc7 $14) 18. Nd6+ {[%emt 0:01:19][%cal Bc4d6,Bd6f7,Bf7g5][%mdl 32]} Kc7 {[%emt 0:00:22]} 19. Be7 $36 {[%emt 0:01:28][%mdl 2048] White has strong initiative.} Rfg8 {[%emt 0:01:16]} (19... Bd3 $16) 20. Nxf7 $18 {[%emt 0:00:05]} Rh7 {[%emt 0:00:16]} 21. Bd6+ {[%emt 0:00:03]} Kc6 {[%emt 0:01:00]} 22. Ng5 {[%emt 0:00:05]} Rh6 {[%emt 0:01:18]} 23. f3 {[%emt 0:02:05]} (23. Nxe4 Rxg2 24. Rd1 Rg4 $18) 23... Bd3 {[%emt 0:07:47]} 24. b3 {[%emt 0:00:59]} b5 {[%emt 0:01:10]} (24... c4 {was called for.} 25. fxe4 Nf8 26. bxc4 Bxc4) 25. Kf2 {[%emt 0:01:15] Threatens to win with a4.} (25. fxe4 c4 26. O-O-O Rhg6 $18) 25... c4 {[%emt 0:00:56]} 26. Nh3 {[%emt 0:00:39]} ({Don't take} 26. Nxe4 $6 Bxe4 27. fxe4 Nf6 $16) 26... Nb6 {[%emt 0:01:43]} 27. Rac1 {[%emt 0:02:37]} Nd5 {[%emt 0:00:20]} (27... Nc8 {was worth a try.} 28. Bb4 Nb6) 28. Ng5 {[%emt 0:00:20]} Kd7 {[%emt 0:01:02]} 29. Rhg1 {[%emt 0:01:06]} ({But not} 29. Nxe4 $6 Bxe4 30. fxe4 Nb6 $18) 29... Rc8 {[%emt 0:00:53]} 30. b4 {[%emt 0:00:16]} Rc6 {[%emt 0:00:34]} 31. Nxe4 {[%emt 0:00:57]} Bxe4 {[%emt 0:00:14]} 32. fxe4 {[%emt 0:00:01]} Nb6 {[%emt 0:02:06]} (32... Nf6 33. Kf3 (33. exf6 Kxd6 34. Ke2 Rxf6 $18) 33... Ng4) 33. g4 {[%emt 0:00:39] And now gxh5 would win.} hxg4 {[%emt 0:00:16]} 34. Rxg4 {[%emt 0:00:02] Black must now prevent Rg7+.} Rc8 {[%emt 0:00:01]} 35. Rg7+ {[%emt 0:02:04]} Kc6 {[%emt 0:00:07]} 36. Rd1 {[%emt 0:00:04]} Rxh4 {[%emt 0:00:38]} 37. Bc5 {[%emt 0:00:11][%csl Gc5,Ge5][%cal Rd1d6]} Rc7 {[%emt 0:00:54]} 38. Rd6+ {[%emt 0:02:33]} Kb7 {[%emt 0:00:01]} 39. Rxc7+ {[%emt 0:00:20]} Kxc7 {[%emt 0:00:02]} 40. Bxb6+ {[%emt 0:00:01]} axb6 {[%emt 0:00:04]} 41. Rxe6 {[%emt 0:00:02][%mdl 4096] Endgame KR-KR} Rh2+ {[%emt 0:01:40]} 42. Kf3 {[%emt 0:01:17]} Rc2 {[%emt 0:00:11]} 43. Rd6 {[%emt 0:05:23]} Rxc3 {[%emt 0:00:23]} 44. Rd5 {[%emt 0:03:36]} Rc1 {[%emt 0:00:19]} 45. e6 {[%emt 0:00:25]} Rf1+ {[%emt 0:00:53] [#]} 46. Ke2 $1 {[%emt 0:01:02]} Rf6 {[%emt 0:00:20]} 47. Re5 {[%emt 0:01:00] Threatening mate with e7.} Kd8 {[%emt 0:00:32]} 48. Rxb5 {[%emt 0:03:59]} Rxe6 {[%emt 0:00:03]} 49. Rd5+ {[%emt 0:00:02]} Ke7 {[%emt 0:00:24]} 50. Rd4 $2 {[%emt 0:03:13]} (50. Kd2 $18 {has better winning chances.}) 50... b5 $16 {[%emt 0:00:24]} 51. Rd5 {[%emt 0:00:59]} Ra6 {[%emt 0:00:16]} 52. Rxb5 {[%emt 0:00:19]} Rxa2+ {[%emt 0:00:02]} 53. Kf3 {[%emt 0:00:02]} c3 {[%emt 0:00:17]} 54. Kf4 {[%emt 0:01:02]} (54. Rc5 $16) 54... Rb2 {[%emt 0:00:25]} (54... Ke6 $1 $11) 55. Rc5 {[%emt 0:00:07]} (55. Ke5 {with more complications.} c2 56. Rc5 Rxb4 57. Rc7+) 55... Rxb4 {[%emt 0:00:05]} 56. Rxc3 {[%emt 0:00:02]} Rb6 {[%emt 0:00:04]} 57. e5 {[%emt 0:00:02] Prevents Rf6+.} Ra6 {[%emt 0:00:02]} 58. Kf5 {[%emt 0:00:03]} Rb6 {[%emt 0:00:23]} 59. Rc7+ {[%emt 0:00:10]} Ke8 {[%emt 0:00:02]} 60. e4 {[%emt 0:00:09]} (60. e6 $16 {White threatens Kf6 and mate.} Rb2 61. Kf4) 60... Ra6 {[%emt 0:00:07] [#]} (60... Rh6 $1 $11 {keeps the balance.}) 61. Rg7 {[%emt 0:00:33]} (61. Rh7 $1 $16) 61... Rb6 {[%emt 0:00:20]} (61... Rh6 $1 $11 {remains equal.}) 62. Rg6 {[%emt 0:00:03]} Rb1 {[%emt 0:00:21]} 63. Ra6 {[%emt 0:00:05]} (63. Kf6 $16 {Intending Rg8+ and mate.} Kf8 64. Rh6 Rf1+ 65. Ke6) 63... Rh1 $1 $11 {[%emt 0:00:09]} 64. Ra8+ {[%emt 0:00:09]} (64. Ra7 $14) 64... Ke7 {[%emt 0:00:02]} ({Black should try} 64... Kf7 $16) 65. Ra7+ {[%emt 0:00:01]} (65. Rb8 $11) 65... Ke8 $16 {[%emt 0:00:01]} 66. Ke6 {[%emt 0:00:06][%cal Ra7a8]} Rh6+ {[%emt 0:00:02]} 67. Kd5 {[%emt 0:00:01]} Rg6 {[%emt 0:00:09]} 68. e6 {[%emt 0:00:32]} ({White should play} 68. Ra8+ $16 Ke7 69. Ra5) 68... Rg1 $11 {[%emt 0:00:22]} 69. Ke5 {[%emt 0:00:21]} Rh1 {[%emt 0:00:20]} 70. Rf7 {[%emt 0:00:08]} (70. e7 {looks sharper.} Rb1 71. Ke6 Rb6+ 72. Kd5) 70... Ra1 {[%emt 0:00:21]} 71. Rf5 {[%emt 0:00:11]} Ke7 {[%emt 0:00:04]} 72. Rf7+ {[%emt 0:00:06]} Ke8 {[%emt 0:00:00]} 73. Rd7 {[%emt 0:00:01]} Rh1 {[%emt 0:00:04]} 74. Kf6 {[%emt 0:00:13]} Rf1+ {[%emt 0:00:02]} 75. Kg5 {[%emt 0:00:02]} Rg1+ {[%emt 0:00:04]} 76. Kf5 {[%emt 0:00:01]} Rf1+ {[%emt 0:00:02]} 77. Ke5 {[%emt 0:00:02]} Rh1 {[%emt 0:00:03]} 78. Kd6 {[%emt 0:00:02]} (78. Rb7 $14) 78... Rd1+ {[%emt 0:00:02] The position is equal.} 79. Kc7 {[%emt 0:00:02]} Rc1+ {[%emt 0:00:09]} 80. Kb8 {[%emt 0:00:02]} Rc6 {[%emt 0:00:18]} 81. Rd5 {[%emt 0:00:06] Black defended with fortune.  Weighted Error Value: White=0.28 (precise) /Black=0.46} 1/2-1/2

[Event "Slovakia Open 2022"]
[Site "Bratislava"]
[Date "2022.10.02"]
[Round "9.19"]
[White "Rosol, Alexander"]
[Black "Migalko, Dmitriy"]
[Result "1-0"]
[ECO "C00"]
[WhiteElo "2041"]
[BlackElo "1528"]
[Annotator "TA"]
[PlyCount "83"]
[EventDate "2022.09.30"]
[EventCountry "SVK"]
[SourceTitle "playchess.com"]
[Source "ChessBase"]
[SourceQuality "1"]
[TimeControl "2700+10"]

{[%evp 10,83,0,0,29,18,18,19,25,22,33,7,15,-22,-39,-25,-6,-27,-30,-12,-18,-23,-31,-20,0,-37,20,-27,96,35,31,44,37,28,32,0,6,-86,-81,-118,-24,-11,0,0,0,0,0,0,0,0,19,0,19,0,0,0,0,-172,-165,-136,0,0,707,707,29957,12851,29976,29977,29977,29978,29978,29979,29979,29980,29979,29980]} 1. e4 {[%emt 0:00:18]} c5 {[%emt 0:00:04]} 2. b4 {[%emt 0:00:08]} cxb4 {[%emt 0:00:34]} 3. a3 {[%emt 0:00:06]} e6 {[%emt 0:00:17]} 4. d4 {[%emt 0:00:22]} d5 {[%emt 0:00:09]} 5. e5 {[%emt 0:00:05]} Nc6 {[%emt 0:00:05]} 6. Nf3 {[%emt 0:00:08]} Nh6 {[%emt 0:00:13] C00: French: Unusual White 2nd moves.} 7. Bxh6 {[%emt 0:00:11]} gxh6 {[%emt 0:00:01]} 8. axb4 {[%emt 0:00:13]} Bxb4+ {[%emt 0:00:07] The position is equal.} 9. c3 {[%emt 0:00:02]} Be7 {[%emt 0:00:03][%cal Bb4e7,Be7f6,Bf6e5][%mdl 32]} 10. Bd3 {[%emt 0:00:17] [#]} O-O $146 {[%emt 0:01:25]} ({Predecessor:} 10... f5 11. Qd2 Bg5 12. Qb2 Rg8 13. c4 Be7 14. O-O Nb4 15. Be2 dxc4 16. Bxc4 b5 17. Bxb5+ {0-1 (30) Gaehler,M (2376)-Pelletier,Y (2559) Switzerland 2019}) 11. Bc2 {[%emt 0:00:39] And now Qd3 would win.} f5 {[%emt 0:00:20]} 12. exf6 {[%emt 0:00:12]} Bxf6 {[%emt 0:00:08]} 13. Qd3 {[%emt 0:00:27][%csl Gc2][%cal Rd3h7]} Rf7 {[%emt 0:00:42]} 14. O-O {[%emt 0:00:24]} e5 {[%emt 0:02:17]} 15. dxe5 {[%emt 0:00:26]} Nxe5 {[%emt 0:01:11]} 16. Nxe5 {[%emt 0:00:17]} Bxe5 {[%emt 0:00:02] This bishop pair is nice.} 17. Bb3 {[%emt 0:02:23]} Be6 {[%emt 0:01:27]} ({But not} 17... Qh4 18. g3 Qf6 19. Qxd5 $16) ({Black should play} 17... Kg7 $15) 18. Nd2 {[%emt 0:01:14]} (18. Na3 $142) 18... Qc7 {[%emt 0:02:08]} (18... Qf6 $11) 19. Nf3 {[%emt 0:02:18]} (19. Rae1 $1 $16) 19... Qxc3 $14 {[%emt 0:00:20]} (19... Bxc3 $2 20. Rac1 $18) 20. Nxe5 {[%emt 0:00:10]} Qxe5 {[%emt 0:00:03]} 21. Rae1 {[%emt 0:00:38]} Qd6 {[%emt 0:00:39]} 22. Qe3 {[%emt 0:01:00][%mdl 1024] White has compensation.} (22. Qd4 $5 {[%cal Re1e3]}) 22... Bd7 {[%emt 0:05:09]} 23. Qd3 {[%emt 0:01:50] [#] Against Bb5} (23. Qd4 $11 {keeps the balance.} Bc6 24. Re5) 23... Bc6 $1 $17 {[%emt 0:00:53]} 24. Re4 {[%emt 0:00:17] [#]} Qd7 {[%emt 0:04:37]} (24... Kh8 $1 $17 {...Qg6 is the strong threat.} 25. Qd1 Qf6) 25. Re5 $11 {[%emt 0:02:49]} a5 {[%emt 0:13:07]} 26. Bxd5 {[%emt 0:02:55]} Bxd5 {[%emt 0:00:08]} 27. Rxd5 {[%emt 0:00:03]} Qc7 {[%emt 0:01:08]} 28. Qd2 {[%emt 0:01:14]} a4 {[%emt 0:04:16]} 29. Qxh6 {[%emt 0:01:56]} a3 {[%emt 0:00:57]} 30. Rfd1 {[%emt 0:04:02]} Raf8 {[%emt 0:03:00]} 31. Qe6 {[%emt 0:04:39]} Kh8 {[%emt 0:01:03]} 32. R5d2 {[%emt 0:03:29]} Qc5 {[%emt 0:00:29][%cal Rf7f2]} 33. Kh1 $2 {[%emt 0:01:28]} (33. Qa2 $11 {and White is okay.}) 33... Rxf2 $19 {[%emt 0:00:36] ( -> ...Rf1+)} 34. Rd8 {[%emt 0:00:13]} Qf5 {[%emt 0:00:46]} (34... Qg5 $17 {[%csl Gf2][%cal Rg5g2]} 35. Rxf8+ Rxf8) 35. Qc4 {[%emt 0:00:08]} Rxd8 $4 {[%emt 0:00:39][%mdl 8192]} (35... Qf6 $11 36. Rxf8+ Qxf8) 36. Rxd8+ $11 {[%emt 0:00:06][%mdl 4096] Endgame KQR-KQR} Kg7 {[%emt 0:00:01]} 37. Rg8+ {[%emt 0:02:05]} Kh6 {[%emt 0:01:17]} 38. Qh4+ {[%emt 0:00:16] White mates.} Qh5 {[%emt 0:00:10]} 39. Qxf2 {[%emt 0:00:03][%cal Rf2f8]} Qd1+ {[%emt 0:00:05]} 40. Qg1 {[%emt 0:00:02]} Qxg1+ {[%emt 0:00:01]} 41. Kxg1 {[%emt 0:00:02]} b5 {[%emt 0:00:10]} 42. Rb8 {[%emt 0:00:13] Weighted Error Value: White=0.24 (precise) /Black=0.49} 1-0

[Event "Slovakia Open 2022"]
[Site "Bratislava"]
[Date "2022.10.02"]
[Round "9.24"]
[White "Bombek, Peter"]
[Black "Matejka, Simon"]
[Result "1-0"]
[ECO "D60"]
[WhiteElo "2083"]
[BlackElo "1422"]
[Annotator "TA"]
[PlyCount "105"]
[EventDate "2022.09.30"]
[EventCountry "SVK"]
[SourceTitle "playchess.com"]
[Source "ChessBase"]
[SourceQuality "1"]
[TimeControl "2700+10"]

{[%evp 14,105,12,21,46,20,35,18,23,23,29,23,25,30,31,17,31,18,23,0,17,9,15,20,44,23,43,41,99,94,117,104,209,191,218,206,268,264,264,259,259,259,259,247,340,336,318,319,329,268,268,268,261,187,499,496,455,447,496,489,637,637,633,633,633,626,612,597,595,582,567,564,531,519,521,495,477,474,1168,825,1682,1626,2268,1855,5396,4417,29958,6115,7659,6722,29983,1475,29984,29985]} 1. d4 {[%emt 0:00:09]} d5 {[%emt 0:00:21]} 2. Nf3 {[%emt 0:00:06]} Nf6 {[%emt 0:00:14]} 3. c4 {[%emt 0:00:10]} e6 {[%emt 0:00:19]} 4. Nc3 {[%emt 0:00:33]} c6 {[%emt 0:00:26]} 5. Bg5 {[%emt 0:00:17]} Be7 {[%emt 0:01:34]} 6. e3 {[%emt 0:00:05]} O-O {[%emt 0:00:10]} 7. Be2 {[%emt 0:00:52]} Nbd7 {[%emt 0:00:27]} 8. O-O {[%emt 0:00:06]} Re8 {[%emt 0:01:18] D60: Queen's Gambit Declined: Classical: Unusual White 7th moves.} 9. Qc2 {[%emt 0:00:42]} b6 {[%emt 0:00:57]} 10. cxd5 {[%emt 0:01:14]} exd5 {[%emt 0:00:26] The position is equal.} 11. a3 {[%emt 0:01:09] [#]} a5 $146 {[%emt 0:00:59]} ({Predecessor:} 11... Bb7 12. Rac1 Bd6 13. Bd3 h6 14. Bh4 a6 15. e4 dxe4 16. Nxe4 Bc7 17. Bg3 Rc8 {1-0 (29) Bulbul,E-Degirmenci,Y (1722) Antalya 2013}) 12. h3 {[%emt 0:01:16]} Ba6 {[%emt 0:01:27]} 13. Bxa6 {[%emt 0:01:23]} Rxa6 {[%emt 0:00:05]} 14. Rac1 {[%emt 0:00:19]} Ra8 {[%emt 0:00:43]} 15. Bf4 {[%emt 0:03:24]} Rc8 {[%emt 0:01:14]} 16. Rfe1 {[%emt 0:03:24]} Nf8 {[%emt 0:01:03]} 17. Ne5 {[%emt 0:03:20]} Ng6 {[%emt 0:02:55]} 18. Nxg6 {[%emt 0:00:15]} fxg6 {[%emt 0:01:59]} 19. Na4 {[%emt 0:00:57]} Ne4 {[%emt 0:01:55]} 20. Qd3 {[%emt 0:03:46]} Bd6 {[%emt 0:04:08] White now steadily converts the win.} (20... b5 $14 21. Nc3 Nd6) 21. Bxd6 $16 {[%emt 0:03:57]} Nxd6 {[%emt 0:01:35]} 22. Qa6 {[%emt 0:01:47] White is more active.} Nc4 {[%emt 0:01:10] [#]} (22... b5 $16) 23. b3 $1 $18 {[%emt 0:01:50]} Nxa3 {[%emt 0:04:50]} 24. Nxb6 {[%emt 0:01:51]} Rb8 {[%emt 0:01:52]} 25. Rxc6 {[%emt 0:00:47]} Nc2 {[%emt 0:00:31]} 26. Rxc2 {[%emt 0:00:50]} Qxb6 {[%emt 0:01:23]} 27. Qxb6 {[%emt 0:00:11]} Rxb6 {[%emt 0:00:07][%mdl 4096] Endgame KRR-KRR} 28. Rc5 {[%emt 0:00:26][%csl LRa5,LRd5]} Rd8 {[%emt 0:00:17]} 29. Ra1 {[%emt 0:00:48]} ({Weaker is} 29. Rxa5 Rxb3 30. Ra7 Rbb8 $18) 29... Rxb3 {[%emt 0:00:44]} 30. Raxa5 {[%emt 0:00:33]} Rf8 {[%emt 0:00:37]} 31. Rab5 {[%emt 0:01:38]} ({Don't do} 31. Rxd5 Rb1+ 32. Kh2 Rxf2 $18) 31... Rxb5 {[%emt 0:01:09]} 32. Rxb5 {[%emt 0:00:03] KR-KR} Rd8 {[%emt 0:00:12]} 33. Rb7 {[%emt 0:01:02]} h5 $2 {[%emt 0:00:22]} (33... g5 34. Kf1 h6) 34. h4 {[%emt 0:00:11]} Rd6 {[%emt 0:00:39]} 35. Kh2 {[%emt 0:00:14]} Kh7 {[%emt 0:00:14]} 36. Re7 {[%emt 0:00:18]} Kh6 {[%emt 0:00:23]} 37. Re5 {[%emt 0:00:07]} Kh7 {[%emt 0:00:03]} 38. Kg3 {[%emt 0:00:22]} Rd7 {[%emt 0:00:59]} 39. Kf3 {[%emt 0:00:08]} Kg8 {[%emt 0:00:33]} 40. Ke2 {[%emt 0:00:20]} Kf7 {[%emt 0:00:30]} 41. g3 {[%emt 0:00:26]} Kf6 {[%emt 0:00:17]} 42. Kd3 {[%emt 0:01:22]} Kf7 {[%emt 0:00:14]} 43. f3 {[%emt 0:00:13]} Kg8 {[%emt 0:00:29]} 44. e4 {[%emt 0:00:08]} dxe4+ {[%emt 0:00:10]} 45. fxe4 {[%emt 0:00:02]} Rf7 {[%emt 0:00:07]} (45... Ra7 $142 46. Ke3 Rd7) 46. Ke3 {[%emt 0:00:32] [#] Threatens to win with Re8+.} Rf1 {[%emt 0:00:06]} 47. Re7 {[%emt 0:02:05] d5 is the strong threat.} Ra1 {[%emt 0:00:25]} 48. d5 {[%emt 0:00:17][%cal Bd4d5,Bd5d6,Bd6d7][%mdl 32]} Ra3+ {[%emt 0:00:04]} 49. Kf4 {[%emt 0:00:04] Intending d6 and mate.} Kf8 {[%emt 0:00:12]} 50. Rc7 {[%emt 0:00:09]} (50. d6 $142 Rd3 51. Ke5 Re3 52. Rc7 Ke8 53. Rxg7 Kd8 54. Rxg6 Kd7 55. Rg7+ Kd8 56. Kd5) 50... Ra4 {[%emt 0:00:11]} 51. d6 {[%emt 0:00:47] Threatening mate with Rc8+.} Ra6 {[%emt 0:00:36]} 52. Rc8+ {[%emt 0:00:16]} Kf7 {[%emt 0:00:09]} 53. d7 {[%emt 0:00:07] Weighted Error Value: White=0.09 (flawless) /Black=0.66} 1-0

[Event "Slovakia Open 2022"]
[Site "Bratislava"]
[Date "2022.10.02"]
[Round "9.25"]
[White "Csontos, Aron"]
[Black "Mikulas, Dusan"]
[Result "1/2-1/2"]
[ECO "B06"]
[WhiteElo "1962"]
[BlackElo "2047"]
[Annotator "TA"]
[PlyCount "100"]
[EventDate "2022.09.30"]
[EventCountry "SVK"]
[SourceTitle "playchess.com"]
[Source "ChessBase"]
[SourceQuality "1"]
[TimeControl "2700+10"]

{[%evp 14,100,0,0,56,44,60,22,31,36,28,16,16,20,25,12,16,10,18,10,21,0,-1,-8,12,-97,-96,-110,-110,-104,-85,-85,-85,-83,-87,-79,-81,-87,-76,-87,-76,-94,-90,-106,-48,-56,-49,-55,-47,-45,-54,-43,-48,-97,-96,-149,-97,-103,-66,-67,-3,-217,-211,-200,-201,-194,-156,-160,-80,-129,-108,-132,-80,-80,-80,-80,-80,-80,-80,-80,0,0,0,0,0,0,0,0,0]} 1. e3 {[%emt 0:00:08]} c5 {[%emt 0:00:07]} 2. e4 {[%emt 0:00:10]} d5 {[%emt 0:00:06]} 3. c3 {[%emt 0:00:02][%cal Bc2c3,Bc3d4,Bd4d5][%mdl 32]} Qd6 {[%emt 0:00:02]} 4. exd5 {[%emt 0:00:02]} Qxd5 {[%emt 0:00:10]} 5. d4 {[%emt 0:00:03]} g6 {[%emt 0:00:04]} 6. Nf3 {[%emt 0:00:05]} Bg7 {[%emt 0:00:06]} 7. Be3 {[%emt 0:03:48]} cxd4 {[%emt 0:00:20]} 8. cxd4 {[%emt 0:00:05]} Nc6 {[%emt 0:00:44] 8...Nh6 is the modern continuation. B06: Modern Defence.} (8... Qa5+ $11 9. Nc3 Nh6) 9. Nc3 $14 {[%emt 0:00:12]} Qd8 {[%emt 0:00:06]} 10. d5 {[%emt 0:00:39]} Ne5 {[%emt 0:01:00]} 11. Nxe5 {[%emt 0:04:59]} Bxe5 {[%emt 0:00:02] [#]} 12. Bd4 $146 {[%emt 0:03:04]} ({Predecessor:} 12. Bc4 Nf6 13. O-O O-O 14. h3 Bb8 15. f4 b6 16. Qe1 Bb7 17. Rd1 Ne8 18. Bd4 a6 19. Bd3 {½-½ (41) Koroljova,V (2120)-Zvereva,M (2254) St Petersburg 2000}) 12... Bxd4 {[%emt 0:00:14]} 13. Qxd4 {[%emt 0:00:03]} Nf6 {[%emt 0:00:22]} 14. Be2 {[%emt 0:00:44]} O-O {[%emt 0:00:16]} 15. O-O {[%emt 0:00:12]} a6 {[%emt 0:01:32]} 16. Bf3 {[%emt 0:02:27]} Qd6 {[%emt 0:00:13]} 17. Na4 {[%emt 0:02:25]} Bf5 {[%emt 0:05:01]} 18. Rac1 {[%emt 0:04:33]} Rad8 {[%emt 0:02:22]} 19. Nb6 {[%emt 0:02:14]} (19. Nc5 $11 Rb8 20. h3) 19... e5 $1 $17 {[%emt 0:03:15][%cal Be7e5,Be5e4][%mdl 32]} 20. Qc5 {[%emt 0:01:19]} e4 {[%emt 0:01:22]} 21. Be2 {[%emt 0:01:27]} Qxc5 {[%emt 0:02:27]} 22. Rxc5 {[%emt 0:00:05]} Rd6 $1 {[%emt 0:00:05]} 23. Nc4 {[%emt 0:00:28]} Rxd5 {[%emt 0:00:53]} 24. Rxd5 {[%emt 0:00:43]} Nxd5 {[%emt 0:00:01]} 25. Rd1 {[%emt 0:00:03]} Nf4 {[%emt 0:05:02]} 26. Bf1 {[%emt 0:00:42]} Be6 {[%emt 0:02:14]} 27. g3 {[%emt 0:01:00]} Nh3+ {[%emt 0:03:34]} 28. Kg2 {[%emt 0:01:28]} b5 {[%emt 0:01:45]} (28... Ng5 $17 29. h4 Bh3+ 30. Kh1 Bxf1 31. Rxf1 Nf3) 29. Ne3 $15 {[%emt 0:00:31] Inhibits Bg4.} Ng5 {[%emt 0:00:27]} 30. h4 {[%emt 0:00:35]} Bh3+ {[%emt 0:00:57]} 31. Kh2 {[%emt 0:00:39]} Bxf1 {[%emt 0:00:05]} 32. hxg5 {[%emt 0:00:15][%mdl 4096] Endgame KRB-KRN} Bd3 {[%emt 0:02:40]} 33. Nd5 {[%emt 0:01:49]} (33. g4 $15) 33... Kg7 $17 {[%emt 0:01:50]} 34. Kg2 {[%emt 0:05:30]} (34. Ne3 $142) 34... Rc8 {[%emt 0:01:51]} (34... Be2 $142 $1 {[%cal Re2d1]} 35. Rc1 Re8) 35. Nf4 {[%emt 0:03:36]} Rc5 {[%emt 0:00:27]} 36. Nxd3 $15 {[%emt 0:00:35] KRN-KR} Rd5 {[%emt 0:02:51]} (36... exd3 $15 37. Rxd3 a5) 37. Kf1 $2 {[%emt 0:02:23]} exd3 $19 {[%emt 0:00:40] KR-KR} ({Worse is} 37... Rxd3 38. Rxd3 exd3 39. Ke1 $15) 38. Ke1 {[%emt 0:00:23]} f6 {[%emt 0:00:12]} ({Stronger than} 38... Rxg5 39. Rxd3 h5 40. Kd2 $17) 39. gxf6+ {[%emt 0:00:06]} Kxf6 {[%emt 0:00:11] aiming for ...Ke5.} 40. Kd2 {[%emt 0:00:07]} Kf5 {[%emt 0:00:09]} ({Better is} 40... Re5 {Hoping for ...Re2+.} 41. Kxd3 Rd5+ 42. Ke2 Rxd1 43. Kxd1 Ke5) 41. f3 {[%emt 0:00:41]} ({White should play} 41. Rh1) 41... h5 {[%emt 0:00:29]} 42. Re1 {[%emt 0:00:55]} Re5 {[%emt 0:00:27] Against Re8} (42... g5 $142 {...g4 is the strong threat.} 43. Rh1 Kg6) 43. Rc1 $17 {[%emt 0:00:09]} Re2+ $1 {[%emt 0:00:45]} 44. Kxd3 {[%emt 0:00:03]} Rxb2 {[%emt 0:00:02]} 45. Rc5+ {[%emt 0:00:02] [#]} Kf6 $1 {[%emt 0:00:23]} 46. Rc6+ {[%emt 0:00:02] [#]} Kg5 {[%emt 0:00:31]} (46... Kg7 $1 $17 47. Rxa6 Rg2 48. Ra7+ Kh6) 47. Rxa6 $11 {[%emt 0:00:20] The position is equal.} Rg2 {[%emt 0:00:07]} 48. Ra5 {[%emt 0:00:33]} Rxg3 {[%emt 0:00:33]} 49. Ke3 {[%emt 0:00:12]} h4 {[%emt 0:00:29]} 50. Rxb5+ {[%emt 0:00:01]} Kf6 {[%emt 0:01:15] Weighted Error Value: White=0.22 (precise) /Black=0.16 (very precise)} 1/2-1/2